bitfinex-derivatives/quotes_SOLF0:USTF0_20251115
["timestamp","ask_amount","ask_price","bid_price","bid_amount"]
[1763225403880,0.04833829,142.43,142.42,3.13]
[1763225404086,1.82678292,142.44,142.42,3.13]
[1763225410093,0.0494907,142.44,142.42,3.13]
[1763225410592,1.77729222,142.43,142.37,3.38]
[1763225410797,1.77729222,142.39,142.37,3.38]
[1763225410991,1.77729222,142.39,142.32,3.38]
[1763225411191,1.77729222,142.36,142.32,3.38]
[1763225411592,0.04660059,142.35,142.34,3.32]
[1763225415905,418.0,142.48,142.35,3.32]
[1763225416100,1.77729222,142.38,142.35,3.32]
[1763225416900,1.82280729,142.38,142.35,3.36887109]
[1763225421405,1.77729222,142.36,142.35,0.04887109]
[1763225421602,1.77729222,142.36,142.35,3.36887109]
[1763225422204,0.04551507,142.38,142.35,3.36887109]
[1763225422406,1.77729222,142.37,142.35,3.36887109]
[1763225424711,0.04551507,142.38,142.35,3.36887109]
[1763225432507,0.04551507,142.38,142.35,0.04887109]
[1763225432811,1.77729222,142.37,142.35,0.04887109]
[1763225434923,1.77729222,142.37,142.35,3.37887109]
[1763225435310,1.77729222,142.37,142.35,0.04887109]
[1763225436717,0.04551507,142.38,142.35,0.04887109]
[1763225444527,0.04551507,142.38,142.35,3.37887109]
[1763225444726,0.04551507,142.38,142.37,3.33]
[1763225447334,1.77729222,142.41,142.37,3.33]
[1763225448332,0.02975774,142.4,142.38,0.04817376]
[1763225449731,0.02975774,142.4,142.38,3.37817376]
[1763225450532,0.02975774,142.4,142.38,0.04817376]
[1763225452028,2.80771123,142.4,142.32,3.33]
[1763225452337,2.77795349,142.38,142.32,3.33]
[1763225453235,0.04621284,142.36,142.34,0.04873425]
[1763225459541,0.04621284,142.36,142.34,3.37873425]
[1763225459943,0.04621284,142.36,142.34,0.04873425]
[1763225461640,0.04621284,142.36,142.34,3.37873425]
[1763225462636,0.04621284,142.36,142.34,0.04873425]
[1763225463739,0.04621284,142.36,142.34,3.37873425]
[1763225464950,0.04621284,142.36,142.34,0.04873425]
[1763225468546,0.04621284,142.36,142.3,3.35]
[1763225468743,2.77795349,142.38,142.3,3.35]
[1763225469248,73.48,142.4,142.3,3.35]
[1763225469449,2.77795349,142.37,142.34,0.05235975]
[1763225469647,0.04939378,142.36,142.34,0.05235975]
[1763225470549,2.77795349,142.35,142.34,0.05235975]
[1763225471653,0.04939378,142.36,142.34,0.05235975]
[1763225473156,2.77795349,142.35,142.27,3.34]
[1763225473458,2.77795349,142.32,142.27,3.34]
[1763225474259,0.04450098,142.31,142.28,3.38487658]
[1763225483461,73.5,142.36,142.28,3.38487658]
[1763225483666,2.77795349,142.37,142.28,3.38487658]
[1763225483964,2.77795349,142.35,142.28,3.34]
[1763225484364,0.04761429,142.33,142.31,3.34]
[1763225484865,2.77795349,142.37,142.31,3.34]
[1763225485866,0.04475129,142.35,142.31,3.34]
[1763225487864,73.5,142.39,142.33,3.34]
[1763225488866,0.04215894,142.37,142.36,3.34]
[1763225494170,2.82011243,142.37,142.35,3.10308346]
[1763225499271,2.82011243,142.37,142.35,0.05308346]
[1763225500072,2.82011243,142.37,142.31,3.05]
[1763225500377,2.77795349,142.33,142.26,3.05]
[1763225501071,0.04796154,142.31,142.29,3.05]
[1763225503667,2.77795349,142.35,142.29,3.05]
[1763225503872,2.77795349,142.37,142.3,3.05]
[1763225504769,0.04728086,142.35,142.33,3.05]
[1763225525287,1.82572525,142.35,142.32,3.23170211]
[1763225525487,1.82572525,142.35,142.32,0.05170211]
[1763225525681,1.77844439,142.33,142.32,0.05170211]
[1763225525881,1.77844439,142.33,142.32,3.23170211]
[1763225526081,1.82572525,142.35,142.32,3.23170211]
[1763225526285,0.04728086,142.35,142.32,3.23170211]
[1763225527980,0.04728086,142.35,142.32,5.0101465]
[1763225528185,0.04728086,142.35,142.33,3.18]
[1763225535985,6.55364461,142.46,142.38,3.05]
[1763225536198,1.77844439,142.44,142.4,3.05]
[1763225536382,1.77844439,142.45,142.4,3.05]
[1763225536992,1.77844439,142.45,142.42,3.05]
[1763225537791,1.77844439,142.45,142.41,3.10356578]
[1763225538491,1.77844439,142.44,142.41,3.10356578]
[1763225539091,1.77844439,142.46,142.41,3.10356578]
[1763225539791,1.77844439,142.46,142.42,3.05]
[1763225540989,1.22210321,142.48,142.42,3.05]
[1763225541184,1.77844439,142.47,142.42,3.05]
[1763225541388,1.77844439,142.47,142.43,3.09497632]
[1763225544293,1.22184576,142.5,142.43,3.09497632]
[1763225544491,1.77844439,142.49,142.43,3.09497632]
[1763225544890,424.55364461,142.56,142.43,3.09497632]
[1763225544891,8.75797853,142.65,142.49,3.05]
[1763225545091,1.77844439,142.7,142.62,1.7]
[1763225545293,1.77844439,142.7,142.61,1.77844439]
[1763225545294,4.53056012,142.71,142.65,1.74429176]
[1763225545591,3.31,142.77,142.67,1.74645832]
[1763225545791,3.31,142.7,142.64,1.7]
[1763225546094,5.08844439,142.69,142.66,0.04904314]
[1763225546294,3.31,142.69,142.66,0.04743011]
[1763225546489,5.08844439,142.69,142.66,0.04743011]
[1763225546697,3.31,142.68,142.66,0.04743011]
[1763225547296,3.31,142.69,142.66,0.04743011]
[1763225548895,1.77844439,142.68,142.66,0.04743011]
[1763225549792,5.08844439,142.68,142.66,0.04743011]
[1763225550800,5.08844439,142.69,142.66,0.04743011]
[1763225551202,5.08844439,142.69,142.66,1.74743011]
[1763225551695,5.08844439,142.69,142.66,0.04743011]
[1763225551899,3.31,142.68,142.66,0.04743011]
[1763225553196,1.77844439,142.69,142.66,0.04743011]
[1763225553503,3.31,142.68,142.66,0.04743011]
[1763225556402,3.31,142.68,142.54,62.0]
[1763225556403,3.32,142.66,142.6,1.68]
[1763225556611,3.32,142.64,142.6,1.68]
[1763225556805,1.77844439,142.61,142.58,1.68]
[1763225557103,5.09844439,142.61,142.58,1.68]
[1763225557704,5.09844439,142.61,142.58,1.73389974]
[1763225557705,5.142849,142.61,142.58,1.73389974]
[1763225557905,1.822849,142.61,142.58,1.73389974]
[1763225558799,0.04440461,142.61,142.58,1.73389974]
[1763225560996,5.142849,142.61,142.58,1.73389974]
[1763225562606,3.32,142.6,142.58,0.05389974]
[1763225562908,3.32,142.58,142.52,3.45844439]
[1763225563707,3.32,142.58,142.53,1.68]
[1763225563907,0.04807495,142.56,142.54,1.72547621]
[1763225568406,0.04807495,142.56,142.55,1.68]
[1763225570606,3.32,142.64,142.56,1.68]
[1763225570810,3.32,142.64,142.58,1.68]
[1763225571708,0.05121464,142.62,142.6,0.05374447]
[1763225571909,3.37121464,142.62,142.6,0.05374447]
[1763225577712,3.37121464,142.62,142.5,2.76844965]
[1763225577917,3.32,142.59,142.51,1.68]
[1763225578114,6.08844965,142.58,142.51,1.68]
[1763225578712,0.04483326,142.56,142.53,0.04432807]
[1763225578918,3.36483326,142.56,142.53,1.72432807]
[1763225579317,0.04483326,142.56,142.53,1.72432807]
[1763225583118,0.04483326,142.56,142.53,4.49277772]
[1763225583320,0.04483326,142.56,142.54,1.68]
[1763225586125,3.19483326,142.56,142.53,1.73432807]
[1763225586826,3.19483326,142.56,142.53,0.04432807]
[1763225590238,0.04483326,142.56,142.53,1.73432807]
[1763225590537,3.15,142.59,142.55,1.69]
[1763225591439,0.04447571,142.58,142.55,1.69]
[1763225594443,0.04447571,142.58,142.57,1.68]
[1763225596242,3.34,142.65,142.57,1.68]
[1763225596443,3.34,142.65,142.58,4.44844965]
[1763225597336,3.34,142.65,142.6,0.04604358]
[1763225597744,3.34,142.65,142.6,1.72604358]
[1763225597943,3.34,142.65,142.6,0.04604358]
[1763225599438,3.34,142.65,142.61,1.68]
[1763225600338,3.34,142.68,142.62,4.44844965]
[1763225600539,3.34,142.68,142.64,0.04534154]
[1763225601537,3.34,142.68,142.64,1.72534154]
[1763225608153,3.34,142.68,142.64,0.04534154]
[1763225612656,3.34,142.68,142.64,1.72534154]
[1763225614152,3.34,142.68,142.64,0.04534154]
[1763225615950,3.34,142.68,142.56,9.15716842]
[1763225615951,7.94471993,142.68,142.56,1.73]
[1763225616152,3.21,142.65,142.56,1.73]
[1763225616456,3.21,142.63,142.56,1.73]
[1763225616859,3.2591721,142.61,142.58,1.78043169]
[1763225620662,5.97844965,142.59,142.58,0.05043169]
[1763225620862,3.21,142.58,142.54,1.73]
[1763225621754,5.97844965,142.57,142.51,1.73]
[1763225621954,3.21,142.56,142.55,0.04810883]
[1763225628367,3.21,142.55,142.5,1.73]
[1763225629158,0.04873768,142.54,142.51,1.77814699]
[1763225632063,0.04873768,142.54,142.51,4.54659664]
[1763225632259,0.04873768,142.54,142.52,1.73]
[1763225634970,0.04873768,142.54,142.52,3.50296333]
[1763225635170,0.04873768,142.54,142.53,1.73]
[1763225636866,0.04873768,142.54,142.52,3.50296333]
[1763225637167,0.04873768,142.54,142.53,1.73]
[1763225638361,0.04873768,142.54,142.52,3.50296333]
[1763225641779,0.04873768,142.54,142.53,1.73]
[1763225643474,3.21,142.62,142.54,1.73]
[1763225643670,3.21,142.62,142.59,1.73]
[1763225643976,3.21,142.65,142.61,1.73]
[1763225644380,3.21,142.65,142.6,1.77296333]
[1763225644581,3.19,142.63,142.61,0.05032772]
[1763225644982,3.23920582,142.64,142.61,1.78032772]
[1763225647182,0.04920582,142.64,142.61,1.78032772]
[1763225648081,0.04920582,142.64,142.62,1.77296333]
[1763225648480,0.04920582,142.64,142.62,3.50296333]
[1763225649682,0.04920582,142.64,142.62,1.73]
[1763225649884,0.04920582,142.64,142.63,1.73]
[1763225654583,3.05,142.63,142.61,0.05032772]
[1763225654787,3.05,142.61,142.55,1.73]
[1763225655088,3.05,142.59,142.55,1.73]
[1763225655789,0.05116191,142.58,142.56,1.77631065]
[1763225655977,3.10116191,142.58,142.56,1.77631065]
[1763225656182,0.05116191,142.58,142.56,1.77631065]
[1763225658385,0.05116191,142.58,142.57,3.50296333]
[1763225658585,3.05,142.64,142.58,1.73]
[1763225659688,0.05353466,142.62,142.6,0.05170189]
[1763225661086,0.05353466,142.62,142.6,1.78170189]
[1763225662683,3.05,142.67,142.62,1.73]
[1763225663790,3.05,142.65,142.63,0.05149513]
[1763225665889,0.04553808,142.66,142.63,1.78149513]
[1763225666095,3.09553808,142.66,142.63,1.78149513]
[1763225668703,0.04553808,142.66,142.63,1.78149513]
[1763225670504,3.09553808,142.66,142.63,1.78149513]
[1763225673409,3.05,142.65,142.63,0.05149513]
[1763225674508,5.03296333,142.64,142.63,0.05149513]
[1763225674709,3.26,142.63,142.54,1.77296333]
[1763225674910,3.26,142.59,142.54,1.73]
[1763225675708,0.04530312,142.58,142.56,1.73]
[1763225681610,0.04530312,142.58,142.57,3.50296333]
[1763225685011,0.04530312,142.58,142.55,1.82466415]
[1763225685317,3.30530312,142.58,142.55,1.78170082]
[1763225689416,3.30530312,142.58,142.56,1.73]
[1763225689617,0.04530312,142.58,142.56,1.73]
[1763225691919,3.30530312,142.58,142.56,1.73]
[1763225692219,3.30530312,142.58,142.55,1.82466415]
[1763225692519,3.30530312,142.58,142.55,3.55466415]
[1763225692719,0.04530312,142.58,142.56,1.73]
[1763225701628,0.04530312,142.58,142.56,4.49907707]
[1763225701822,3.26,142.63,142.57,1.73]
[1763225702824,3.26,142.63,142.59,0.04808172]
[1763225703023,0.05023486,142.61,142.59,1.77808172]
[1763225704226,3.16023486,142.61,142.59,0.04808172]
[1763225706330,3.16023486,142.61,142.54,1.71]
[1763225707230,3.16023486,142.61,142.56,0.04869339]
[1763225707932,3.16023486,142.61,142.56,1.75869339]
[1763225708627,3.16023486,142.61,142.56,0.04869339]
[1763225709529,3.16023486,142.61,142.56,1.75869339]
[1763225711230,3.16023486,142.61,142.56,0.04869339]
[1763225711732,5.92931193,142.61,142.56,0.04869339]
[1763225711921,3.14,142.6,142.56,0.04869339]
[1763225712126,3.14,142.58,142.56,0.04869339]
[1763225712431,3.14,142.58,142.5,10.88779584]
[1763225712632,3.14,142.56,142.49,1.73]
[1763225713527,3.14,142.53,142.51,0.04670236]
[1763225714834,3.14,142.58,142.53,1.73]
[1763225715833,3.18506137,142.57,142.54,1.78253671]
[1763225717435,3.18506137,142.57,142.54,0.05253671]
[1763225719636,3.18506137,142.57,142.48,10.88779584]
[1763225719939,3.14,142.57,142.48,10.88779584]
[1763225720526,0.04513272,142.54,142.51,0.05216688]
[1763225720731,3.14,142.53,142.51,0.05216688]
[1763225722337,3.14,142.53,142.46,2.76907707]
[1763225722737,3.14,142.57,142.52,4.49907707]
[1763225722937,3.14,142.57,142.53,1.73]
[1763225723342,0.05305748,142.56,142.54,1.77434871]
[1763225723939,3.19305748,142.56,142.54,0.04434871]
[1763225724634,0.05305748,142.56,142.54,4.54342578]
[1763225725341,3.19305748,142.56,142.54,4.54342578]
[1763225728142,0.05305748,142.56,142.54,4.54342578]
[1763225729046,3.19305748,142.56,142.54,0.04434871]
[1763225730347,0.05305748,142.56,142.54,1.77434871]
[1763225733354,0.05305748,142.56,142.54,4.54342578]
[1763225733747,0.05305748,142.56,142.55,1.73]
[1763225736852,3.21,142.62,142.55,1.73]
[1763225737854,3.25976476,142.6,142.57,0.05081654]
[1763225738052,3.25976476,142.6,142.57,1.79081654]
[1763225743365,3.25976476,142.6,142.57,0.05081654]
[1763225765687,3.25976476,142.6,142.57,1.78081654]
[1763225765988,3.25976476,142.6,142.57,1.82338006]
[1763225766488,3.25976476,142.6,142.57,0.05081654]
[1763225775187,3.36,142.59,142.57,0.05081654]
[1763225777189,3.36,142.59,142.54,1.73]
[1763225777383,3.36,142.59,142.52,8.15826332]
[1763225777584,3.36,142.59,142.53,1.77256352]
[1763225778094,3.36,142.59,142.53,3.50256352]
[1763225778296,3.36,142.56,142.55,0.04631599]
[1763225781300,3.36,142.55,142.49,8.20082684]
[1763225781600,3.36,142.53,142.48,1.73]
[1763225782295,3.36,142.51,142.49,0.04470128]
[1763225789198,3.40623208,142.52,142.49,1.77470128]
[1763225794110,0.04623208,142.52,142.49,1.77470128]
[1763225794706,3.39623208,142.52,142.49,1.77470128]
[1763225795606,0.04623208,142.52,142.5,1.71]
[1763225797310,3.39623208,142.52,142.49,1.75470128]
[1763225806423,0.04623208,142.52,142.49,1.75470128]
[1763225807724,3.39623208,142.52,142.49,1.75470128]
[1763225809421,0.04623208,142.52,142.49,1.75470128]
[1763225812226,3.39623208,142.52,142.49,1.75470128]
[1763225813323,1.77256352,142.55,142.49,1.75470128]
[1763225813324,9.90673246,142.61,142.51,1.71]
[1763225813529,3.35,142.61,142.58,1.71]
[1763225814424,3.39467693,142.61,142.58,1.75538852]
[1763225815529,0.04467693,142.61,142.59,1.71]
[1763225815725,0.04467693,142.61,142.6,3.48256352]
[1763225817427,3.35,142.65,142.6,3.48256352]
[1763225817626,3.35,142.65,142.63,1.71]
[1763225817936,3.35,142.65,142.62,3.48256352]
[1763225818129,3.35,142.65,142.63,1.71]
[1763225818537,3.39572139,142.65,142.63,1.75596583]
[1763225818733,0.04572139,142.65,142.63,1.75596583]
[1763225821037,0.04572139,142.65,142.63,4.52247278]
[1763225821238,3.35,142.7,142.64,1.71]
[1763225822243,0.04519273,142.68,142.64,1.71]
[1763225822835,73.46,142.75,142.63,2.81247278]
[1763225822836,3.35,142.73,142.67,4.47650695]
[1763225823044,3.35,142.73,142.68,1.71]
[1763225824040,3.25217432,142.72,142.69,0.04710506]
[1763225824743,3.25217432,142.72,142.69,1.77710506]
[1763225827246,0.05217432,142.72,142.69,1.77710506]
[1763225830152,6.01868127,142.72,142.69,0.04710506]
[1763225830447,3.2,142.71,142.69,0.04710506]
[1763225830652,3.2,142.69,142.63,1.73]
[1763225830953,3.2,142.65,142.6,1.73]
[1763225831754,3.23811153,142.64,142.61,0.04777049]
[1763225831954,3.23811153,142.64,142.61,1.77777049]
[1763225835554,3.23811153,142.64,142.61,0.04777049]
[1763225836259,3.23811153,142.64,142.61,1.77777049]
[1763225837455,0.04811153,142.64,142.61,1.77777049]
[1763225841361,0.04811153,142.64,142.62,1.73]
[1763225842961,3.23811153,142.64,142.61,0.04777049]
[1763225843161,3.23811153,142.64,142.61,1.77777049]
[1763225843764,0.04811153,142.64,142.61,1.77777049]
[1763225844161,0.04811153,142.64,142.62,1.73]
[1763225849068,3.19,142.7,142.62,1.73]
[1763225850066,3.24042602,142.67,142.65,0.04879188]
[1763225850267,3.23917422,142.67,142.65,1.77879188]
[1763225850760,0.04917422,142.67,142.65,1.77879188]
[1763225852166,3.23917422,142.67,142.65,0.04879188]
[1763225862673,0.04917422,142.67,142.65,1.77879188]
[1763225862871,3.11,142.73,142.66,1.73]
[1763225863575,3.11,142.73,142.68,1.73]
[1763225864076,3.14067287,142.72,142.69,1.77826515]
[1763225865074,3.14067287,142.72,142.69,0.04826515]
[1763225874975,3.14067287,142.72,142.69,1.77826515]
[1763225879588,3.14067287,142.72,142.69,0.04826515]
[1763225882685,3.11,142.71,142.69,0.04826515]
[1763225884787,3.33067287,142.72,142.69,1.77826515]
[1763225889187,3.33067287,142.72,142.69,0.04826515]
[1763225889995,3.33067287,142.72,142.69,1.77826515]
[1763225890896,3.33067287,142.72,142.69,0.04826515]
[1763225892097,0.03067287,142.72,142.7,1.73]
[1763225893797,3.07067287,142.72,142.7,1.73]
[1763225899295,0.03067287,142.72,142.7,1.73]
[1763225899501,3.04,142.74,142.7,1.73]
[1763225900901,3.04,142.74,142.71,1.76899738]
[1763225901100,3.04,142.74,142.72,1.73]
[1763225901302,3.04,142.77,142.74,1.73]
[1763225901502,3.04,142.77,142.74,1.77552067]
[1763225903194,3.04,142.79,142.74,1.77552067]
[1763225903501,3.04,142.79,142.75,1.76899738]
[1763225903691,3.04,142.79,142.75,3.49899738]
[1763225905901,3.04,142.79,142.75,1.73]
[1763225906497,3.04,142.78,142.75,1.73]
[1763225912009,3.04,142.78,142.74,0.04552067]
[1763225912210,3.04,142.76,142.74,0.04552067]
[1763225912402,3.04,142.76,142.74,0.05393341]
[1763225913512,3.04,142.76,142.74,1.78393341]
[1763225914303,3.04,142.76,142.74,0.05393341]
[1763225937624,3.04,142.76,142.74,1.77393341]
[1763225938337,3.04,142.76,142.74,0.05393341]
[1763225943033,3.12,142.78,142.75,1.72]
[1763225943226,6.15805476,142.81,142.76,8.76304792]
[1763225943431,0.90022601,142.81,142.77,8.81222793]
[1763225943633,0.90022601,142.81,142.78,8.76304792]
[1763225943834,73.36,142.83,142.79,8.76304792]
[1763225944029,73.36,142.83,142.8,8.76304792]
[1763225944338,73.36,142.83,142.81,8.76304792]
[1763225944539,73.36,142.83,142.82,8.76304792]
[1763225945238,74.76,142.83,142.82,8.76304792]
[1763225945440,78.01,142.83,142.82,8.76304792]
[1763225946133,76.61,142.83,142.82,8.76304792]
[1763225948242,3.25,142.83,142.82,8.76304792]
[1763225949243,3.25,142.87,142.82,8.76304792]
[1763225949543,3.25,142.87,142.83,8.81498668]
[1763225949740,3.25,142.87,142.84,8.76304792]
[1763225949942,3.25,142.87,142.85,8.76304792]
[1763225950138,3.25,142.87,142.86,8.76304792]
[1763225953646,3.25,142.87,142.86,7.38152646]
[1763225953846,4.65,142.87,142.86,7.38152646]
[1763225954151,1.25,142.86,142.83,0.05193876]
[1763225954343,4.01227512,142.84,142.83,0.05193876]
[1763225954543,1.25,142.83,142.76,3.34]
[1763225955553,1.25,142.8,142.78,0.0538492]
[1763225957449,1.25,142.8,142.78,3.3938492]
[1763225957649,0.05193876,142.81,142.78,3.3938492]
[1763225958052,1.30193876,142.81,142.78,3.3938492]
[1763225959453,1.30193876,142.81,142.78,0.0538492]
[1763225962756,4.06421388,142.81,142.78,0.0538492]
[1763225963157,1.25,142.8,142.78,0.0538492]
[1763225966158,1.25,142.8,142.79,8.76243493]
[1763225982461,2.65,142.8,142.79,8.27118017]
[1763225982657,2.65,142.8,142.78,0.0538492]
[1763225982658,1.23,142.79,142.78,0.0538492]
[1763225982858,77.29227512,142.79,142.78,0.0538492]
[1763225994974,73.3,142.79,142.78,3.3538492]
[1763225995176,74.53,142.79,142.78,0.0538492]
[1763225996668,73.3,142.79,142.78,3.3538492]
[1763226002678,1.28193876,142.81,142.78,3.3538492]
[1763226002868,75.06782713,142.8,142.78,3.3538492]
[1763226003067,73.3,142.8,142.78,3.3538492]
[1763226003470,74.53,142.8,142.78,3.3538492]
[1763226003666,2.99782713,142.79,142.78,0.0538492]
[1763226008077,3.01782713,142.73,142.7,3.06]
[1763226008279,73.3,142.74,142.7,3.06]
[1763226008477,74.55,142.74,142.7,3.06]
[1763226008779,1.25,142.73,142.7,3.06]
[1763226008974,3.06425229,142.73,142.71,0.05181204]
[1763226009173,1.25,142.72,142.71,0.05181204]
[1763226012284,1.81425229,142.73,142.71,3.20181204]
[1763226012875,0.04642516,142.73,142.71,3.20181204]
[1763226022090,76.32782713,142.77,142.71,3.20181204]
[1763226023093,0.04906879,142.75,142.71,3.20181204]
[1763226024996,0.04906879,142.75,142.73,3.15]
[1763226025490,6.54971685,142.83,142.74,3.15]
[1763226025697,4.83782713,142.83,142.78,3.15]
[1763226025885,3.07,142.82,142.78,3.15]
[1763226026290,1.76782713,142.79,142.71,6.41685134]
[1763226026489,3.07,142.76,142.74,0.05323798]
[1763226027093,3.07,142.78,142.74,3.20323798]
[1763226027601,1.76782713,142.77,142.74,3.20323798]
[1763226028292,4.83782713,142.77,142.74,3.20323798]
[1763226031900,4.83782713,142.75,142.74,0.05323798]
[1763226032904,1.76782713,142.75,142.74,3.20323798]
[1763226033794,1.76782713,142.78,142.74,3.20323798]
[1763226034898,1.76782713,142.8,142.74,3.20323798]
[1763226035399,75.06782713,142.81,142.76,3.3]
[1763226035589,4.83782713,142.79,142.77,0.04745739]
[1763226035997,4.83782713,142.79,142.77,3.34745739]
[1763226036297,3.07,142.8,142.77,3.34745739]
[1763226036505,1.76782713,142.79,142.77,3.34745739]
[1763226037896,3.07,142.78,142.77,0.04745739]
[1763226038102,3.07,142.78,142.71,3.3]
[1763226038295,1.76782713,142.76,142.71,3.3]
[1763226038490,4.83782713,142.76,142.71,3.3]
[1763226039197,0.04667131,142.75,142.73,3.3]
[1763226044502,0.04667131,142.75,142.74,3.3]
[1763226044798,75.04782713,142.82,142.74,4.7]
[1763226045106,75.04782713,142.82,142.76,3.3]
[1763226045704,78.16782713,142.82,142.79,3.3]
[1763226046595,76.4,142.82,142.79,3.3]
[1763226046904,4.88782713,142.82,142.79,3.3]
[1763226047500,3.12,142.85,142.79,3.3]
[1763226047704,1.76782713,142.83,142.81,3.34568141]
[1763226048597,3.12,142.85,142.81,3.34568141]
[1763226048804,1.76782713,142.83,142.81,3.34568141]
[1763226049805,4.88782713,142.83,142.81,3.34568141]
[1763226054416,1.76782713,142.83,142.81,3.34568141]
[1763226054711,3.12,142.86,142.81,3.34568141]
[1763226054712,1.76782713,142.85,142.81,3.34568141]
[1763226055313,73.28,142.87,142.81,3.34568141]
[1763226055506,4.88782713,142.86,142.81,3.34568141]
[1763226057110,1.76782713,142.84,142.81,3.34568141]
[1763226057901,9.66971685,142.89,142.81,3.34568141]
[1763226058102,1.76782713,142.87,142.82,3.3]
[1763226058307,1.76782713,142.87,142.84,3.3]
[1763226059309,3.12,142.89,142.84,3.3]
[1763226059511,1.76782713,142.88,142.84,3.3]
[1763226060308,4.88782713,142.88,142.84,3.3]
[1763226060710,1.76782713,142.86,142.84,3.3]
[1763226060912,4.88782713,142.86,142.84,3.3493619]
[1763226063017,3.12,142.86,142.84,3.3493619]
[1763226066218,2.75937035,142.89,142.84,3.3493619]
[1763226066415,5.87937035,142.89,142.84,3.3493619]
[1763226066613,3.12,142.88,142.84,3.3493619]
[1763226067917,5.87937035,142.87,142.84,3.3493619]
[1763226068123,3.12,142.86,142.84,3.3993619]
[1763226069218,2.75937035,142.87,142.84,3.3993619]
[1763226070120,5.87937035,142.89,142.84,3.3993619]
[1763226070423,3.12,142.88,142.84,3.3993619]
[1763226070719,3.12,142.91,142.84,3.3993619]
[1763226070921,3.12,142.93,142.87,3.35]
[1763226071121,2.75937035,142.92,142.9,3.35]
[1763226071523,3.06,142.92,142.9,3.35]
[1763226072618,5.81937035,142.94,142.9,3.35]
[1763226072822,5.81937035,142.94,142.91,3.29426359]
[1763226073025,3.06,142.93,142.91,3.30027437]
[1763226073224,3.06,142.93,142.91,0.05027437]
[1763226078727,5.81937035,142.92,142.91,0.00384921]
[1763226078928,3.06,142.91,142.84,3.25]
[1763226079128,3.06,142.92,142.84,3.25]
[1763226079330,5.81937035,142.91,142.84,3.25]
[1763226079528,3.06,142.9,142.84,3.25]
[1763226079930,0.05168364,142.88,142.86,3.30208797]
[1763226080130,3.11168364,142.88,142.86,3.30208797]
[1763226080430,0.05168364,142.88,142.86,3.30208797]
[1763226090538,3.06,142.94,142.86,3.30208797]
[1763226090841,3.06,142.94,142.87,3.25]
[1763226091539,3.06,142.94,142.9,3.25]
[1763226098241,3.06,142.94,142.89,3.09953069]
[1763226098647,3.11,142.92,142.89,0.04953069]
[1763226098841,3.11,142.9,142.89,0.04793568]
[1763226101248,6.54971685,142.95,142.89,0.04793568]
[1763226101249,9.65971685,142.95,142.89,0.04793568]
[1763226101446,3.11,142.91,142.89,0.04793568]
[1763226108853,3.11,142.91,142.89,3.09793568]
[1763226109054,5.86937035,142.92,142.89,3.09793568]
[1763226109449,3.11,142.91,142.89,3.09793568]
[1763226114255,3.11,142.93,142.89,3.09793568]
[1763226116056,3.11,142.94,142.89,3.09793568]
[1763226118153,3.11,142.96,142.89,3.09793568]
[1763226118462,3.11,142.96,142.91,3.05]
[1763226118656,3.11,142.96,142.92,0.04732377]
[1763226118851,5.86937035,142.95,142.92,0.04732377]
[1763226119057,5.86937035,142.93,142.92,0.04732377]
[1763226120552,4.51,142.93,142.92,0.04732377]
[1763226120762,5.86937035,142.93,142.92,0.04732377]
[1763226121061,7.26937035,142.93,142.92,0.04732377]
[1763226121963,5.86937035,142.93,142.92,0.04732377]
[1763226122263,3.11,142.93,142.92,0.04732377]
[1763226124666,3.11,142.94,142.92,3.13732377]
[1763226125060,3.11,142.95,142.92,3.13732377]
[1763226125261,1.76382865,142.96,142.93,8.75337429]
[1763226125568,1.76382865,142.96,142.92,3.13732377]
[1763226125569,1.76382865,142.96,142.94,8.75337429]
[1763226125761,1.76382865,142.96,142.95,8.75337429]
[1763226131270,2.66946118,142.97,142.95,8.75337429]
[1763226131471,2.66946118,142.97,142.96,8.75337429]
[1763226131673,4.43328983,142.97,142.96,8.75337429]
[1763226132269,1.76382865,142.97,142.96,8.75337429]